Cogmind - Beta 17 @@@ ROGUE MODE // 2026.07.05 @ 12:49:57 Player: tuuli Result: Destroyed by G-34 Mercenary with Small Laser Performance ------------- Evolutions (1) 500 Regions Visited (3) 600 Robots Destroyed (3) 15 Value Destroyed (40) 40 Prototype IDs (0) 0 Alien Tech Used (0) 0 Bonus (0) 0 TOTAL SCORE: 1155 Bonus ------- None Cogmind --------- Core Integrity 0/400 Matter 171/300 Energy 100/100 System Corruption 0% Temperature Cool (6) Movement Core (200) Ox3 Location -9/Materials Parts ------- > --- POWER (2) -------- (None) > --- PROPULSION (2) --- (None) > --- UTILITY (3) ------ Medium Storage Unit > --- WEAPON (2) ------- (None) > --- INVENTORY (10) --- Light Treads Scrap Suit Mining Laser Peak State ------------ > --- POWER ------------ Ion Engine Light Ion Engine > --- PROPULSION ------- Light Treads Light Treads > --- UTILITY ---------- Medium Storage Unit Small Battery > --- WEAPON ----------- Small Laser Rocket Launcher > --- INVENTORY -------- Scrap Suit EM Pulse Gun Light Assault Rifle Mining Laser [Rating: 10] Favorites ----------- Power Ion Engine Engine Ion Engine Propulsion Light Treads Treads Light Treads Wheel Wheel Utility Small Battery Storage Small Battery Weapon Small Laser Energy Gun Small Laser Ballistic Gun Light Assault Rifle Launcher Rocket Launcher Build | -11 -10 -10 -9 ------- Run | Yrd Mat Min Mat Slots Evolved 2 | . . . 2 Power 1 | . . . 1 Propulsion . | . . . . Utility 1 | . . . 1 Weapon . | . . . . Parts Attached 12 | 7 1 2 2 Power 2 | 1 . . 1 Engine 2 | 1 . . 1 Core . | . . . . Reactor . | . . . . Propulsion 3 | 3 . . . Treads 2 | 2 . . . Leg . | . . . . Wheel 1 | 1 . . . Hover . | . . . . Flight . | . . . . Utility 3 | 1 1 1 . Device . | . . . . Storage 3 | 1 1 1 . Processor . | . . . . Hackware . | . . . . Protection . | . . . . Artifact . | . . . . Weapon 4 | 2 . 1 1 Energy Gun 2 | 2 . . . Energy Cannon . | . . . . Ballistic Gun 1 | . . . 1 Ballistic Cannon . | . . . . Launcher 1 | . . 1 . Special Weapon . | . . . . Impact Weapon . | . . . . Slashing Weapon . | . . . . Piercing Weapon . | . . . . Special Melee Weapon . | . . . . Unidentified Prototypes . | . . . . Parts Lost 5 | . . . 5 Power 1 | . . . 1 Propulsion 1 | . . . 1 Utility 1 | . . . 1 Weapon 2 | . . . 2 Highest Loss Streak 5 | . . . 5 To Critical Strikes . | . . . . Average Backups 3 | 1 2 4 4 Power . | . 1 1 . Propulsion . | . . . . Utility . | . . . 1 Weapon 2 | . 1 2 2 Tool/Special . | . . . . Unused Backups 2 | . . . 2 Power . | . . . . Propulsion . | . . . . Utility 1 | . . . 1 Weapon 1 | . . . 1 Tool/Special . | . . . . Average Slot Usage (%) 91 | . 97 100 57 Engine 13 | . 14 14 11 Treads 25 | . 28 28 12 Storage 25 | . 25 28 16 Energy Gun 17 | . 28 16 8 Launcher 8 | . . 11 7 Peak Build Rating 10 | 6 7 9 10 Average Rating 7 | 5 6 8 6 On Entrance 5 | . 6 7 9 Avg Prop Armor Cover (%) . | . . . . Naked Turns . | . . . . Heaviest Build 24 | 13 14 21 24 Greatest Support 40 | 40 40 40 40 Greatest Overweight (x) 3 | . . . 3 Average Overweight (x) . | . . . . Largest Inventory Capacity 10 | 8 8 10 10 Average Capacity 9 | 7 8 9 10 Most Carried 8 | 3 3 6 8 Average Carried 3 | 1 2 4 4 Final Capacity 10 | 8 8 10 10 Final Carried 6 | 2 2 6 4 Class Distribution -------------------- 100% | Mutant Dominant Class ---------------- Mutant | -10/Materials Mutant | -10/Mines Mutant | -9/Materials Resources | -11 -10 -10 -9 ----------- Run | Yrd Mat Min Mat Matter Collected 241 | 203 . 38 . Remotely . | . . . . Salvage Created 49 | . 49 . . Parts 3 | . 3 . . Haulers Intercepted . | . . . . Recyclers Shooed 1 | . 1 . . Parts Field Recycled . | . . . . Retrieved Matter . | . . . . Parts Self-Destructed . | . . . . Prevented . | . . . . Parts Restored . | . . . . Kills | -11 -10 -10 -9 ------- Run | Yrd Mat Min Mat Combat Hostiles Destroyed 3 | . 3 . . Guns 3 | . 3 . . Classes Destroyed 1 | . 1 . . Swarmer 3 | . 3 . . Best Kill Streak 3 | . 3 . . Combat Bots Only 3 | . 3 . . Max Kills in Single Turn 1 | . 1 . . Gunslinging . | . . . . Exploded . | . . . . Melee . | . . . . Uniques/NPCs Destroyed . | . . . . Combat | -11 -10 -10 -9 -------- Run | Yrd Mat Min Mat Hostile Shots Fired 83 | . 17 7 59 Missed 18 | . 6 2 10 Hits 65 | . 11 5 49 Melee 15 | . . . 15 Projectile 50 | . 11 5 34 Critical Strikes 5 | . . . 5 Damage Taken 1088 | . 92 69 927 Core 440 | . 17 17 406 Absorbed by Shields . | . . . . Core Remaining (%) 93 | 100 . 86 . Volleys Fired 16 | . 8 . 8 Largest 2 | . 2 . 2 Hottest 80 | . 80 . 80 Shots Fired 24 | . 10 . 14 Gun 20 | . 10 . 10 Cannon . | . . . . Launcher 4 | . . . 4 Special . | . . . . Kinetic 1 | . . . 1 Thermal 9 | . 2 . 7 Explosive 4 | . . . 4 Electromagnetic 10 | . 8 . 2 Robot Hit Streak 6 | . 2 . 6 Robot Miss Streak 2 | . 2 . 2 Penetration Max . | . . . . Secondary Targets . | . . . . Shots Hit Robots 14 | . 5 . 9 Core Hits 6 | . 4 . 2 Critical Kills . | . . . . Critical Parts Destroyed . | . . . . Critical Strikes . | . . . . Melee Attacks . | . . . . Impact . | . . . . Slashing . | . . . . Piercing . | . . . . Sneak Attacks . | . . . . Combat Hostiles . | . . . . Follow-up Attacks . | . . . . Damage Inflicted 207 | . 90 . 117 Guns 155 | . 90 . 65 Cannons . | . . . . Explosions 52 | . . . 52 Melee . | . . . . Ramming . | . . . . Kinetic . | . . . . Thermal 65 | . . . 65 Explosive 52 | . . . 52 Electromagnetic 90 | . 90 . . Impact . | . . . . Slashing . | . . . . Piercing . | . . . . Highest Corruption . | . . . . Average Corruption . | . . . . Corruption Purged . | . . . . Corruption Blocked . | . . . . Overload Shots . | . . . . Overflow Damage . | . . . . Projectiles . | . . . . Explosions . | . . . . Melee . | . . . . Knockbacks . | . . . . Impact . | . . . . Kinetic . | . . . . Secondary . | . . . . Self-Inflicted Damage . | . . . . Shots . | . . . . Rammed . | . . . . Targets Rammed . | . . . . Kicked . | . . . . Crushed . | . . . . Highest Temperature 111 | . 36 . 111 Average Temperature 32 | . 20 . 35 Received Heat Transfer 243 | . 6 36 201 Siege Activations . | . . . . Martial Activations . | . . . . Shielding Activations . | . . . . Robots Disrupted . | . . . . Combat Hostiles . | . . . . Robots Corrupted . | . . . . Combat Hostiles . | . . . . Parts Fried . | . . . . Impact Corruptions . | . . . . Robots Melted . | . . . . Combat Hostiles . | . . . . Parts Melted . | . . . . Heat Transferred 150 | . . . 150 Parts Sabotaged . | . . . . Parts Stolen . | . . . . Parts Stripped . | . . . . Power Chain Reactions . | . . . . Alert | -11 -10 -10 -9 ------- Run | Yrd Mat Min Mat Maximum Alert Level . | . . . . Low Security (%) 100 | 100 100 100 100 Level 1 . | . . . . Level 2 . | . . . . Level 3 . | . . . . Level 4 . | . . . . Level 5 . | . . . . High Security . | . . . . Max Security . | . . . . Peak Influence 70 | . 70 13 27 Initial 13 | . . 13 . Average 4 | . 26 . 1 Influence Increases 103 | . 75 . 28 Destroy 0b10 Robot/C 60 | . 60 . . Destroy Leader 10 | . 10 . . Successful Hack 5 | . 5 . . Disable Machine 15 | . . . 15 Destroy Structure 13 | . . . 13 Influence Decreases 103 | . 40 35 28 Entered New Map 22 | . . 22 . Time Decay 53 | . 40 13 . Lost Part 28 | . . . 28 Squads Dispatched . | . . . . Investigation . | . . . . Extermination . | . . . . Reinforcement . | . . . . Assault . | . . . . Garrison . | . . . . Intercept . | . . . . Searches Triggered . | . . . . Construction Impeded . | . . . . Haulers Reinforced . | . . . . Active Scanning Responses . | . . . . Cargo Convoy Interrupts . | . . . . Stealth | -11 -10 -10 -9 --------- Run | Yrd Mat Min Mat Distress Signals 1 | . 1 . . Communications Jammed . | . . . . Distress Signals . | . . . . Times Spotted 12 | . 6 2 4 Peak Tracking Total 4 | . 4 2 4 Tactical Retreats . | . . . . Traps | -11 -10 -10 -9 ------- Run | Yrd Mat Min Mat Traps Triggered . | . . . . Indirectly . | . . . . Trap Hack Attempts . | . . . . Triggered . | . . . . Disarmed . | . . . . Reprogrammed . | . . . . Reused . | . . . . Traps Extracted . | . . . . Installed . | . . . . Triggered . | . . . . Machines | -11 -10 -10 -9 ---------- Run | Yrd Mat Min Mat Machines Disabled 1 | . . . 1 Max in Single Turn 1 | . . . 1 Machines Repaired . | . . . . Machines Dismantled . | . . . . Machines Sabotaged . | . . . . Overloaded Fab Kills . | . . . . Hacking | -11 -10 -10 -9 --------- Run | Yrd Mat Min Mat Machines Accessed 2 | . 1 . 1 Terminals 2 | . 1 . 1 Fabricators . | . . . . Repair Stations . | . . . . Recycling Units . | . . . . Scanalyzers . | . . . . Garrison Access . | . . . . Total Hacks 4 | . 2 . 2 Successful 2 | . 1 . 1 Failed 2 | . 1 . 1 Catastrophic 1 | . . . 1 Database Lockouts . | . . . . Manual . | . . . . Terminals 4 | . 2 . 2 Fabricators . | . . . . Repair Stations . | . . . . Recycling Units . | . . . . Scanalyzers . | . . . . Garrison Access . | . . . . Terminal Hacks 2 | . 1 . 1 Branch Access Points 1 | . . . 1 Zone Layout 1 | . 1 . . Fabricator Hacks . | . . . . Repair Station Hacks . | . . . . Recycling Unit Hacks . | . . . . Scanalyzer . | . . . . Garrison Access Hacks . | . . . . Unauthorized Hacks . | . . . . Terminals . | . . . . Fabricators . | . . . . Repair Stations . | . . . . Recycling Units . | . . . . Scanalyzers . | . . . . Garrison Access . | . . . . Data Cores Recovered . | . . . . Used . | . . . . Hacking Detections 1 | . . . 1 Full Trace Events . | . . . . Feedback Events . | . . . . Feedback Blocked . | . . . . Robot Schematics Acquired . | . . . . Robots Built . | . . . . Authchips . | . . . . Time . | . . . . Total Robot Build Rating . | . . . . Part Schematics Acquired . | . . . . Parts Built . | . . . . Authchips . | . . . . Time . | . . . . Total Part Build Rating . | . . . . Part Studies Acquired . | . . . . Parts Repaired . | . . . . Time . | . . . . Parts Recycled . | . . . . Recycled Matter . | . . . . Retrieved Matter . | . . . . Retrieved Components . | . . . . Parts Scanalyzed . | . . . . Part Schematics Acquired . | . . . . Parts Damaged . | . . . . Bothacking | -11 -10 -10 -9 ------------ Run | Yrd Mat Min Mat Used RIF Installer . | . . . . Robots Hacked . | . . . . Non-combat . | . . . . Combat . | . . . . Robot Hacks Applied . | . . . . Relay Couplers Released . | . . . . Fabnet Peak Effective % . | . . . . Robots Rewired . | . . . . Allies Hacked . | . . . . Hacks Repelled . | . . . . Allies | -11 -10 -10 -9 -------- Run | Yrd Mat Min Mat Total Allies 1 | . . 1 . Largest Group 1 | . . 1 . Highest-Rated Group 31 | . . 31 . Highest-Rated Ally 31 | . . 31 . Total Orders . | . . . . Ally Attacks . | . . . . Total Damage . | . . . . Kills . | . . . . Allies Corrupted . | . . . . Allies Melted . | . . . . Intel | -11 -10 -10 -9 ------- Run | Yrd Mat Min Mat Active Infowar (turns) . | . . . . Robot Analysis Total . | . . . . Derelict Logs Recovered 3 | . . 3 . Drone Launches . | . . . . Drone Recoveries . | . . . . Exploration | -11 -10 -10 -9 ------------- Run | Yrd Mat Min Mat Turns Passed 1012 | 129 147 589 147 Spaces Moved 589 | 76 80 364 69 Core 22 | 4 . . 18 Treads 562 | 67 80 364 51 Legs . | . . . . Wheels 5 | 5 . . . Hover . | . . . . Flight . | . . . . Fastest Speed 50 | 50 160 160 160 Average Speed 159 | 148 160 160 171 Slowest Speed 240 | 160 160 160 240 Overloaded Moves . | . . . . Propulsion Burnouts . | . . . . Robots Hopped . | . . . . Potential Cave-ins . | . . . . Cave-ins Triggered . | . . . . Exploration Rate (%) 28 | 4 17 83 8 Regions Visited 3 Branch Regions 1 Pre-discovered Areas 1 | . . 1 . Known Exits Taken . | . . . . Unknown Exits Taken 3 | 1 1 1 . Scrap Searched 1 | . . 1 . Spaces Dug . | . . . . Terrain Destroyed 18 | . . . 18 Melee . | . . . . Projectile . | . . . . AOE 18 | . . . 18 Terrain Rammed . | . . . . Walls Destroyed . | . . . . Machines Disabled . | . . . . Actions | -11 -10 -10 -9 --------- Run | Yrd Mat Min Mat Total 636 | 92 89 370 85 Wait . | . . . . Move 586 | 75 79 363 69 Hop . | . . . . Pick Up 15 | 9 1 4 1 Fast Attach . | . . . . Attach 12 | 6 1 . 5 Detach 2 | . . . 2 Swap 3 | 1 . 2 . Drop 2 | 1 . 1 . Fire 16 | . 8 . 8 Melee . | . . . . Ram . | . . . . Kick . | . . . . Crush . | . . . . Escape Stasis . | . . . . Rewire . | . . . . Trap . | . . . . Miscellaneous . | . . . . Route ------- -11/Scrapyard -10/Materials -10/Mines -9/Materials (discovered 3 exits: Min / Sto x2) History --------- Turn | Location | Event 12 | -11/Scrapyard | Discovered new exit (range 16) 130 | -11/Scrapyard | Entered Materials 218 | -10/Materials | Discovered new exit (range 12) 277 | -10/Materials | Entered Mines 309 | -10/Mines | Build established: Mutant 377 | -10/Mines | Received a Rocket Launcher from a helpful Derelict 422 | -10/Mines | Received a Mining Laser from a helpful Derelict 564 | -10/Mines | Found a Scrap Suit stashed away for nefarious purposes 567 | -10/Mines | Found Scrap Suit 587 | -10/Mines | Learned Materials security intel 848 | -10/Mines | Discovered new exit (range 9) 866 | -10/Mines | Entered Materials 866 | -9/Materials | Evolved 2 slots: Power x1, Utility x1 867 | -9/Materials | Identified exit to Mines 880 | -9/Materials | Identified exit to Storage 980 | -9/Materials | Core integrity fell below 50% 997 | -9/Materials | Core integrity fell below 20% 1008 | -9/Materials | Lost 5 parts (1p1n1u2w) 1013 | -9/Materials | Destroyed by G-34 Mercenary with Small Laser Last Messages --------------- (42,7) Storage (58,70) Storage Map updated. Connecting with Terminal... Scanalyzer disabled. Lgt. Treads destroyed. Critical hit (Burn: +37). The unstable cave ceiling collapses. Lgt. Ion Engine destroyed. Sml. Battery destroyed. The unstable cave ceiling collapses. U-05 Engineer lays Concrete. Rocket Launcher destroyed. Lgt. Treads severed. Acquired Lgt. Treads. Ion Engine severed. EM Pulse Gun severed. Sml. Laser destroyed. Lgt. Assault Rifle severed. U-05 Engineer builds a Wall. Map ----- +----------------------------------------------------+ | ????????????????????????????????????????????? | | ????????????????????????????????????????????? | | ????????????????????????????????????????????? | | ????????????????????????????????????????????? | | ????????????????????????????????????????????? | | ????????????????????????????????????????????? | | ????????????????????????????????????????????? | | ????????????????????????????????????????????? | | ????????????????????????????????????????????? | | ????????????????????????????????????????????? | | ???????????# ?????????????????????????????? | | ???????????# ?????????????????????????????? | | ???????????# ?????????????????????????????? | | ???????????# ?????????????????????????????? | | ###????????# #????????????????????????????? | | ###?????# #????????????????????????????? | | ## #?????# #????????????????????????????? | | #####?# #????????????????????????????? | | # #?# #????????????????????????????? | | # #?# #????????????????????????????? | | # #?# #????????????????????????????? | | # #?# #####+##?????????????????????? | | # #?# #########?????????????? | | """ #?# g a ??????????????? | | # """ #?# l #?????????????????????? | | # """ #?# #####@ #?????????????????????? | | # #?# #???# ??????????????????? | | #####+####?# #???#! !#?????????????????? | | ??# #### #???##!!!!##?????????????????? | | ??# #?????#####??????????????????? | | ??# *" #????????????????????????????? | | ??# [ #????????????????????????????? | | ??# [ ###+#+##????????????????????????????? | | ??## ##???????????????????????????????????? | | ???# #????????????????????????????????????? | | ???# #????????????????????????????????????? | | ???# #????????????????????????????????????? | | ???# #????????????????????????????????????? | | ???# #????????????????????????????????????? | | ???# ########?????????????????????????????? | | ???# # """ #?????????????????????????????? | | ???# # "T" #?????????????????????????????? | | ???# # #?????????????????????????????? | | ???# + == #?????????????????????????????? | | ???# # == #?????????????????????????????? | | ???# # = #?????????????????????????????? | | ???# ########?????????????????????????????? | | ???#####????????????????????????????????????? | | ????????????????????????????????????????????? | | ????????????????????????????????????????????? | +----------------------------------------------------+ Best States ------------- Heat Dissipation 28 Energy Generation 15 Energy Capacity 375 Matter Stores 241 Matter Capacity 300 Sight Range 16 Terrain Scan Density 10 Evasion (%) 40 Recoil Reduction 2 Item Schematics ----------------- None Robot Schematics ------------------ None Fabricated ------------ Nothing Repaired ---------- Nothing Studied --------- None Alien Tech Used ----------------- None Achievements -------------- None Challenges ------------ None Game ------ Seed ScrapoidShockFragment Manual? 0 Play Time 00:15:09 Cumulative 1.5 hours Start 2026.07.05 @ 12:37:25 End 2026.07.05 @ 12:49:57 Sessions 1 Manual Loads 0 Difficulty Rogue Special Mode None Game No. 2 Rogue 1 Adventurer 1 Explorer 0 Win Type - Total 0 Types 0/0/0/0/0/0/0/0/0/0 Lore% 1 Gallery% 3 Achievement% 5 Wizard Run 0 Options --------- Layout 0 ASCII 0 Keyboard 0 Movement Mouse Keybinds 0 Fullscreen 2 Font 18/SmallcapsGlow Map View 38x25 Zoom Use 93% Tactical HUD 0 Map Filters NONE Filters NONE Steam 1 RUN: 5e25dba7-607d-4124-a98d-97078284e489